fUST/lending_fUST_20250620
["ID","MTS","AMOUNT","RATE_DAILY","PERIOD"]
[366725962,1750420244588,-500.0,0.00020973,2]
[366725963,1750420244597,-500.0,0.00020973,2]
[366725964,1750420244609,-500.0,0.00020973,2]
[366725965,1750420244619,-500.0,0.00020973,2]
[366725966,1750420244628,-500.0,0.00020973,2]
[366725967,1750420244639,-500.0,0.00020973,2]
[366725968,1750420244648,-469.58064687,0.00020973,2]
[366725969,1750420244658,-502.21576639,0.00020973,2]
[366725970,1750420244668,-502.81683429,0.00020973,2]
[366725971,1750420244678,-500.0,0.00020973,2]
[366725972,1750420244688,-427.09867936,0.00020973,2]
[366725973,1750420244697,-500.0,0.00020973,2]
[366725974,1750420244707,-151.38447872,0.00020986,2]
[366725975,1750420244716,-151.0,0.00020986,2]
[366725976,1750420244726,-151.0,0.00020986,2]
[366725977,1750420244736,-151.0,0.00020986,2]
[366725978,1750420244746,-151.0,0.00020986,2]
[366725979,1750420244756,-151.0,0.00020986,2]
[366725980,1750420244766,-151.0,0.00020986,2]
[366725981,1750420244775,-151.0,0.00020986,2]
[366725982,1750420244784,-500.0,0.00020986,2]
[366725983,1750420244794,-151.0,0.00020986,2]
[366725984,1750420244804,-151.7088136,0.00020986,2]
[366725985,1750420244813,-151.0,0.00020986,2]
[366725986,1750420244823,-151.0,0.00020986,2]
[366725987,1750420244833,-151.0,0.00020986,2]
[366725988,1750420244843,-500.0,0.00020986,2]
[366725989,1750420244853,-233.6328897,0.00020986,2]
[366725990,1750420244863,-151.0,0.00020986,2]
[366725991,1750420244874,-151.0,0.00020986,2]
[366725992,1750420244883,-151.0,0.00020986,2]
[366725993,1750420244893,-151.0,0.00020986,2]
[366725994,1750420244903,-183.27557432,0.00020986,2]
[366725995,1750420244912,-271.43870979,0.00020986,2]
[366725996,1750420244922,-151.63381692,0.00020986,2]
[366725997,1750420244931,-193.9241166,0.00020986,2]
[366725998,1750420244941,-288.05652424,0.00020986,2]
[366725999,1750420244951,-151.71499628,0.00020986,2]
[366726000,1750420244961,-151.0,0.00020986,2]
[366726001,1750420244970,-287.1928411,0.00020986,2]
[366726002,1750420244980,-571.3360607,0.00020986,2]
[366726003,1750420244990,-500.0,0.00020988,7]
[366726005,1750420245000,-160.0,0.00020988,2]
[366726006,1750420245010,-500.0,0.00020988,2]
[366726007,1750420245020,-500.0,0.00020988,2]
[366726008,1750420245030,-500.0,0.00020988,2]
[366726009,1750420245040,-500.0,0.00020988,2]
[366726010,1750420245050,-599.46,0.00020988,2]
[366726011,1750420245060,-599.46,0.00020988,2]
[366726012,1750420245070,-500.0,0.00020989,2]
[366726013,1750420245080,-500.0,0.00020989,2]
[366726014,1750420245089,-500.0,0.00020989,2]
[366726015,1750420245100,-599.46,0.00020989,2]
[366726016,1750420245109,-599.46,0.00020989,2]
[366726017,1750420245120,-599.46,0.00020989,2]
[366726018,1750420245130,-599.46,0.00020989,2]
[366726019,1750420245140,-599.46,0.00020989,2]
[366726020,1750420245149,-151.0,0.00020989,2]
[366726021,1750420245159,-100000.0,0.0002099,2]
[366726022,1750420245169,-153.85225,0.0002099,2]
[366726023,1750420245179,-151.0,0.0002099,2]
[366726024,1750420245189,-151.0,0.0002099,2]
[366726025,1750420245202,-151.0,0.0002099,2]
[366726026,1750420245212,-151.0,0.0002099,2]
[366726027,1750420245222,-151.0,0.0002099,2]
[366726028,1750420245232,-151.0,0.0002099,2]
[366726029,1750420245243,-151.0,0.0002099,2]
[366726030,1750420245253,-151.0,0.0002099,2]
[366726031,1750420245263,-151.0,0.0002099,2]
[366726032,1750420245274,-151.0,0.0002099,2]
[366726033,1750420245288,-151.0,0.0002099,2]
[366726034,1750420245299,-151.0,0.00021013,2]
[366726035,1750420245308,-198.0,0.00021013,2]
[366726036,1750420245318,-198.0,0.00021013,2]
[366726037,1750420245327,-198.0,0.00021013,2]
[366726038,1750420245338,-151.0,0.00021013,2]
[366726039,1750420245347,-198.0,0.00021013,2]
[366726040,1750420245357,-500.0,0.00021013,2]
[366726041,1750420245367,-198.0,0.00021013,2]
[366726042,1750420245377,-151.0,0.00021013,2]
[366726044,1750420245386,-215.9720676,0.00021013,2]
[366726046,1750420245396,-151.0,0.00021013,2]
[366726047,1750420245405,-500.0,0.00021013,2]
[366726048,1750420245415,-151.0,0.00021013,2]
[366726049,1750420245425,-151.0,0.00021013,2]
[366726050,1750420245434,-151.0,0.00021013,2]
[366726051,1750420245444,-807.0,0.00021018,2]
[366726052,1750420245453,-278.43369268,0.00021041,2]
[366726054,1750420245463,-221.16588728,0.00021041,2]
[366726056,1750420245473,-500.0,0.00021041,2]
[366726058,1750420245483,-151.0,0.00021041,2]
[366726060,1750420245492,-151.0,0.00021041,2]
[366726062,1750420245502,-500.0,0.00021041,2]
[366726064,1750420245512,-151.0,0.00021041,2]
[366726066,1750420245521,-151.0,0.00021041,2]
[366726068,1750420245531,-151.0,0.00021041,2]
[366726070,1750420245540,-807.0,0.00021064,2]
[366726072,1750420245550,-500.0,0.00021068,2]
[366726074,1750420245560,-151.0,0.00021068,2]
[366726076,1750420245570,-151.0,0.00021068,2]
[366726078,1750420245580,-502.01614258,0.00021068,2]
[366726080,1750420245589,-151.0,0.00021068,2]
[366726081,1750420245598,-247.57038776,0.00021068,2]
[366726083,1750420245607,-151.0,0.00021068,2]
[366726085,1750420245617,-807.0,0.00021087,2]
[366726087,1750420245626,-500.0,0.00021096,2]
[366726088,1750420245636,-245.0,0.00021096,2]
[366726089,1750420245646,-170.86544127,0.00021096,2]
[366726090,1750420245656,-245.0,0.00021096,2]
[366726092,1750420245665,-245.0,0.00021096,2]
[366726094,1750420245676,-500.0,0.00021123,2]
[366726096,1750420245685,-5000.0,0.00021138,2]
[366726098,1750420245694,-4001.85776983,0.00021138,2]
[366726100,1750420245704,-207.4,0.00021138,2]
[366726102,1750420245714,-25000.0,0.00021138,2]
[366726104,1750420245723,-500.0,0.0002115,2]
[366726106,1750420245733,-370.0,0.00021161,2]
[366726108,1750420245742,-460.0,0.00021163,2]
[366726110,1750420245751,-967.64,0.00021163,2]
[366726112,1750420245761,-188.41191728,0.00021164,2]
[366726114,1750420245770,-460.0,0.00021164,2]
[366726116,1750420245780,-438.31138332,0.00021164,2]
[366726117,1750420245789,-460.0,0.00021164,2]
[366726119,1750420245799,-460.0,0.00021164,2]
[366726121,1750420245808,-760.29,0.00021164,2]
[366726123,1750420245817,-460.0,0.00021164,2]
[366726125,1750420245827,-1445.9,0.00021164,2]
[366726127,1750420245836,-1379.63,0.00021164,2]
[366726129,1750420245846,-460.0,0.00021164,2]
[366726131,1750420245855,-460.0,0.00021164,2]
[366726133,1750420245864,-460.0,0.00021164,2]
[366726135,1750420245874,-460.0,0.00021164,2]
[366726137,1750420245887,-460.0,0.00021164,2]
[366726139,1750420245896,-1544.97,0.00021164,2]
[366726140,1750420245905,-460.0,0.00021164,2]
[366726142,1750420245915,-1156.4,0.00021164,2]
[366726144,1750420245924,-1713.1,0.00021164,2]
[366726146,1750420245933,-12546.90244252,0.00021166,2]
[366726148,1750420245943,-160.0,0.00021166,2]
[366726151,1750420245952,-160.0,0.00021166,2]
[366726154,1750420245961,-922.814893,0.00021168,4]
[366726156,1750420245970,-160.0,0.0002117,2]
[366726157,1750420245980,-160.0,0.0002117,2]
[366726159,1750420245989,-160.0,0.0002117,2]
[366726161,1750420245999,-213.51557418,0.0002117,2]
[366726163,1750420246009,-433.91171557,0.00021178,2]
[366726165,1750420246019,-150.26498568,0.000212,2]
[366726167,1750420246029,-460.0,0.00021245,2]
[366726169,1750420246038,-405.0306154,0.00021245,2]
[366726171,1750420246047,-460.0,0.00021245,2]
[366726173,1750420246058,-460.0,0.00021245,2]
[366726175,1750420246068,-400.0,0.00021245,2]
[366726177,1750420246078,-460.0,0.00021245,2]
[366726178,1750420246087,-460.0,0.00021245,2]
[366726180,1750420246097,-460.0,0.00021245,2]
[366726182,1750420246107,-460.0,0.00021245,2]
[366726184,1750420246117,-460.0,0.00021245,2]
[366726186,1750420246126,-460.0,0.00021245,2]
[366726188,1750420246137,-460.0,0.00021245,2]
[366726189,1750420246147,-460.0,0.00021245,2]
[366726191,1750420246157,-409.34357492,0.00021245,2]
[366726193,1750420246166,-460.0,0.00021245,2]
[366726194,1750420246176,-290.8707611,0.00021245,2]
[366726195,1750420246186,-460.0,0.00021245,2]
[366726196,1750420246200,-460.0,0.00021245,2]
[366726197,1750420246212,-460.0,0.00021245,2]
[366726202,1750420246353,-436.29091397,0.00021245,2]
[366726204,1750420246365,-430.0,0.00021245,2]
[366726206,1750420246375,-460.0,0.00021245,2]
[366726207,1750420246386,-151.0,0.00021245,2]
[366726209,1750420246396,-353.58806912,0.00021245,2]
[366726211,1750420246406,-438.2821665,0.00021245,2]
[366726213,1750420246416,-191.87633126,0.00021245,2]
[366726215,1750420246426,-460.0,0.00021245,2]
[366726216,1750420246436,-151.0,0.00021245,2]
[366726217,1750420246445,-407.59024471,0.00021245,2]
[366726218,1750420246454,-440.0,0.00021245,2]
[366726219,1750420246464,-460.0,0.00021245,2]
[366726220,1750420246473,-451.57756083,0.00021245,2]
[366726222,1750420246483,-151.0,0.00021245,2]
[366726223,1750420246493,-245.44994683,0.00021245,2]
[366726224,1750420246502,-460.0,0.00021245,2]
[366726226,1750420246513,-460.0,0.00021245,2]
[366726227,1750420246523,-151.0,0.00021245,2]
[366726228,1750420246532,-151.0,0.00021245,2]
[366726230,1750420246542,-460.0,0.00021245,2]
[366726231,1750420246553,-460.0,0.00021245,2]
[366726232,1750420246562,-460.0,0.00021245,2]
[366726233,1750420246572,-460.0,0.00021245,2]
[366726234,1750420246582,-460.0,0.00021245,2]
[366726235,1750420246592,-460.0,0.00021245,2]
[366726236,1750420246601,-460.0,0.00021245,2]
[366726237,1750420246610,-460.0,0.00021245,2]
[366726239,1750420246620,-239.74588453,0.00021245,2]
[366726241,1750420246629,-460.0,0.00021245,2]
[366726243,1750420246639,-335.42142322,0.00021245,2]
[366726245,1750420246648,-359.53154021,0.00021245,2]
[366726246,1750420246658,-460.0,0.00021245,2]
[366726247,1750420246668,-460.0,0.00021245,2]
[366726248,1750420246677,-460.0,0.00021245,2]
[366726249,1750420246687,-223.88215436,0.00021245,2]
[366726250,1750420246696,-460.0,0.00021245,2]
[366726251,1750420246707,-460.0,0.00021245,2]
[366726252,1750420246716,-460.0,0.00021245,2]
[366726253,1750420246725,-460.0,0.00021245,2]
[366726254,1750420246735,-460.0,0.00021245,2]
[366726255,1750420246744,-460.0,0.00021245,2]
[366726256,1750420246754,-460.0,0.00021245,2]
[366726257,1750420246763,-460.0,0.00021245,2]
[366726258,1750420246773,-427.0730036,0.00021245,2]
[366726259,1750420246782,-440.0,0.00021245,2]
[366726260,1750420246791,-460.0,0.00021245,2]
[366726261,1750420246800,-460.0,0.00021245,2]
[366726262,1750420246809,-460.0,0.00021245,2]
[366726263,1750420246819,-460.0,0.00021245,2]
[366726264,1750420246828,-262.71280636,0.00021245,2]
[366726265,1750420246837,-460.0,0.00021245,2]
[366726266,1750420246847,-460.0,0.00021245,2]
[366726267,1750420246856,-460.0,0.00021245,2]
[366726268,1750420246866,-151.0,0.00021245,2]
[366726269,1750420246875,-460.0,0.00021245,2]
[366726270,1750420246885,-460.0,0.00021245,2]
[366726271,1750420246894,-460.0,0.00021245,2]
[366726272,1750420246903,-151.0,0.00021245,2]
[366726273,1750420246913,-151.0,0.00021245,2]
[366726274,1750420246923,-460.0,0.00021245,2]
[366726275,1750420246934,-463.23755312,0.00021245,2]
[366726276,1750420246944,-460.0,0.00021245,2]
[366726277,1750420246953,-460.0,0.00021245,2]
[366726278,1750420246963,-433.88538816,0.00021245,2]
[366726279,1750420246973,-460.0,0.00021245,2]
[366726280,1750420246982,-460.0,0.00021245,2]
[366726281,1750420246991,-460.0,0.00021245,2]
[366726282,1750420247001,-460.0,0.00021245,2]
[366726283,1750420247012,-460.0,0.00021245,2]
[366726284,1750420247022,-411.99011088,0.00021245,2]
[366726285,1750420247032,-460.0,0.00021245,2]
[366726286,1750420247042,-460.0,0.00021245,2]
[366726287,1750420247052,-440.0,0.00021245,2]
[366726288,1750420247061,-460.0,0.00021245,2]
[366726289,1750420247071,-411.35613136,0.00021245,2]
[366726290,1750420247081,-460.0,0.00021245,2]
[366726291,1750420247090,-460.0,0.00021245,2]
[366726292,1750420247100,-237.94133473,0.00021245,2]
[366726293,1750420247109,-460.0,0.00021245,2]
[366726294,1750420247119,-460.0,0.00021245,2]
[366726295,1750420247128,-460.0,0.00021245,2]
[366726296,1750420247138,-460.0,0.00021245,2]
[366726297,1750420247148,-460.0,0.00021245,2]
[366726298,1750420247158,-460.0,0.00021245,2]
[366726299,1750420247168,-460.0,0.00021245,2]
[366726300,1750420247178,-460.0,0.00021245,2]
[366726301,1750420247188,-460.0,0.00021245,2]
[366726302,1750420247202,-460.0,0.00021245,2]
[366726303,1750420247212,-460.0,0.00021245,2]
[366726304,1750420247222,-313.726754,0.00021245,2]
[366726305,1750420247232,-460.0,0.00021245,2]
[366726306,1750420247243,-313.726754,0.00021245,2]
[366726307,1750420247252,-460.0,0.00021245,2]
[366726308,1750420247263,-460.0,0.00021245,2]
[366726309,1750420247273,-460.0,0.00021245,2]
[366726310,1750420247282,-460.0,0.00021245,2]
[366726311,1750420247292,-460.0,0.00021245,2]
[366726312,1750420247301,-460.0,0.00021245,2]
[366726313,1750420247311,-151.0,0.00021245,2]
[366726314,1750420247320,-151.0,0.00021245,2]
[366726315,1750420247329,-460.0,0.00021245,2]
[366726316,1750420247339,-430.0,0.00021245,2]
[366726317,1750420247348,-460.0,0.00021245,2]
[366726318,1750420247357,-151.0,0.00021245,2]
[366726319,1750420247366,-151.0,0.00021245,2]
[366726320,1750420247376,-440.0,0.00021245,2]
[366726321,1750420247385,-460.0,0.00021245,2]
[366726322,1750420247394,-460.0,0.00021245,2]
[366726323,1750420247404,-460.0,0.00021245,2]
[366726324,1750420247413,-460.0,0.00021245,2]
[366726325,1750420247424,-460.0,0.00021245,2]
[366726326,1750420247433,-151.0,0.00021245,2]
[366726327,1750420247442,-151.0,0.00021245,2]
[366726328,1750420247452,-211.81004311,0.00021245,2]
[366726329,1750420247462,-460.0,0.00021245,2]
[366726330,1750420247471,-151.0,0.00021245,2]
[366726331,1750420247482,-151.0,0.00021245,2]
[366726332,1750420247492,-460.0,0.00021245,2]
[366726333,1750420247502,-460.0,0.00021245,2]
[366726334,1750420247512,-460.0,0.00021245,2]
[366726335,1750420247522,-460.0,0.00021245,2]
[366726336,1750420247532,-460.0,0.00021245,2]
[366726337,1750420247543,-460.0,0.00021245,2]
[366726338,1750420247554,-460.0,0.00021245,2]
[366726339,1750420247563,-460.0,0.00021245,2]
[366726340,1750420247573,-460.0,0.00021245,2]
[366726341,1750420247583,-460.0,0.00021245,2]
[366726342,1750420247592,-460.0,0.00021245,2]
[366726343,1750420247602,-460.0,0.00021245,2]
[366726344,1750420247611,-460.0,0.00021245,2]
[366726345,1750420247621,-460.0,0.00021245,2]
[366726346,1750420247630,-151.0,0.00021245,2]
[366726347,1750420247639,-151.0,0.00021245,2]
[366726348,1750420247649,-460.0,0.00021245,2]
[366726349,1750420247658,-460.0,0.00021245,2]
[366726350,1750420247667,-460.0,0.00021245,2]
[366726351,1750420247677,-151.0,0.00021245,2]
[366726352,1750420247686,-201.724763,0.00021245,2]
[366726353,1750420247696,-152.963289,0.00021245,2]
[366726354,1750420247704,-203.08908523,0.00021245,2]
[366726355,1750420247714,-201.724763,0.00021245,2]
[366726356,1750420247724,-460.0,0.00021245,2]
[366726357,1750420247733,-460.0,0.00021245,2]
[366726358,1750420247743,-276.97082694,0.00021245,2]
[366726359,1750420247752,-460.0,0.00021245,2]
[366726360,1750420247761,-358.95184714,0.00021245,2]
[366726361,1750420247772,-460.0,0.00021245,2]
[366726362,1750420247781,-460.0,0.00021245,2]
[366726363,1750420247791,-460.0,0.00021245,2]
[366726364,1750420247801,-286.25679009,0.00021245,2]
[366726365,1750420247810,-460.0,0.00021245,2]
[366726366,1750420247820,-460.0,0.00021245,2]
[366726367,1750420247830,-460.0,0.00021245,2]
[366726368,1750420247840,-460.0,0.00021245,2]
[366726369,1750420247850,-460.0,0.00021245,2]
[366726370,1750420247859,-460.0,0.00021245,2]
[366726371,1750420247869,-460.0,0.00021245,2]
[366726372,1750420247879,-460.0,0.00021245,2]
[366726373,1750420247888,-460.0,0.00021245,2]
[366726374,1750420247898,-460.0,0.00021245,2]
[366726375,1750420247907,-460.0,0.00021245,2]
[366726376,1750420247917,-460.0,0.00021245,2]
[366726377,1750420247926,-325.1707495,0.00021245,2]
[366726378,1750420247936,-560.86,0.00021245,2]
[366726379,1750420247945,-460.0,0.00021245,2]
[366726380,1750420247955,-460.0,0.00021245,2]
[366726381,1750420247964,-460.0,0.00021245,2]
[366726382,1750420247974,-460.0,0.00021245,2]
[366726383,1750420247983,-213.2477313,0.00021245,2]
[366726384,1750420247993,-460.0,0.00021245,2]
[366726385,1750420248003,-460.0,0.00021245,2]
[366726386,1750420248012,-460.0,0.00021245,2]
[366726387,1750420248022,-357.35533622,0.00021245,2]
[366726388,1750420248031,-460.0,0.00021245,2]
[366726389,1750420248041,-460.0,0.00021245,2]
[366726390,1750420248051,-460.0,0.00021245,2]
[366726391,1750420248061,-439.08863961,0.00021245,2]
[366726392,1750420248071,-460.0,0.00021245,2]
[366726393,1750420248080,-460.0,0.00021245,2]
[366726394,1750420248088,-460.0,0.00021245,2]
[366726395,1750420248098,-460.0,0.00021245,2]
[366726396,1750420248107,-460.0,0.00021245,2]
[366726397,1750420248116,-460.0,0.00021245,2]
[366726398,1750420248127,-460.0,0.00021245,2]
[366726399,1750420248136,-460.0,0.00021245,2]
[366726400,1750420248147,-460.0,0.00021245,2]
[366726401,1750420248159,-598.54,0.00021245,2]
[366726402,1750420248169,-380.0,0.00021245,2]
[366726403,1750420248179,-460.0,0.00021245,2]
[366726404,1750420248188,-430.0,0.00021245,2]
[366726405,1750420248198,-460.0,0.00021245,2]
[366726406,1750420248209,-460.0,0.00021245,2]
[366726407,1750420248221,-460.0,0.00021245,2]
[366726408,1750420248230,-440.0,0.00021245,2]
[366726409,1750420248240,-588.95,0.00021245,2]
[366726410,1750420248250,-460.0,0.00021245,2]
[366726411,1750420248261,-460.0,0.00021245,2]
[366726412,1750420248271,-460.0,0.00021245,2]
[366726413,1750420248281,-460.0,0.00021245,2]
[366726414,1750420248291,-1120.93,0.00021245,2]
[366726415,1750420248301,-664.83,0.00021245,2]
[366726416,1750420248311,-460.0,0.00021245,2]
[366726417,1750420248321,-460.0,0.00021245,2]
[366726418,1750420248331,-440.0,0.00021245,2]
[366726419,1750420248341,-460.0,0.00021245,2]
[366726420,1750420248351,-460.0,0.00021245,2]
[366726421,1750420248361,-460.0,0.00021245,2]
[366726422,1750420248372,-460.0,0.00021245,2]
[366726423,1750420248381,-431.26786117,0.00021245,2]
[366726424,1750420248392,-460.0,0.00021245,2]
[366726425,1750420248402,-209.71501146,0.00021245,2]
[366726426,1750420248412,-1483.22,0.00021245,2]
[366726427,1750420248422,-572.86,0.00021245,2]
[366726428,1750420248431,-460.0,0.00021245,2]
[366726429,1750420248441,-416.92230706,0.00021245,2]
[366726430,1750420248450,-165.630389,0.00021245,2]
[366726431,1750420248461,-460.0,0.00021245,2]
[366726432,1750420248471,-460.0,0.00021245,2]
[366726433,1750420248480,-460.0,0.00021245,2]
[366726434,1750420248491,-460.0,0.00021245,2]
[366726435,1750420248500,-219.52110847,0.00021245,2]
[366726436,1750420248522,-460.0,0.00021245,2]
[366726437,1750420248533,-748.49,0.00021245,2]
[366726438,1750420248543,-460.0,0.00021245,2]
[366726439,1750420248554,-460.0,0.00021245,2]
[366726440,1750420248565,-472.88109535,0.00021245,2]
[366726441,1750420248575,-461.84,0.00021245,2]
[366726442,1750420248586,-460.0,0.00021245,2]
[366726443,1750420248596,-2575.7,0.00021245,2]
[366726444,1750420248607,-151.0,0.00021245,2]
[366726445,1750420248618,-151.0,0.00021245,2]
[366726446,1750420248629,-460.0,0.00021245,2]
[366726447,1750420248639,-460.0,0.00021245,2]
[366726448,1750420248649,-460.0,0.00021245,2]
[366726449,1750420248658,-460.0,0.00021245,2]
[366726450,1750420248669,-460.0,0.00021245,2]
[366726451,1750420248680,-440.0,0.00021245,2]
[366726452,1750420248690,-408.24847266,0.00021245,2]
[366726453,1750420248701,-430.0,0.00021245,2]
[366726454,1750420248710,-460.0,0.00021245,2]
[366726455,1750420248720,-460.0,0.00021245,2]
[366726456,1750420248729,-460.0,0.00021245,2]
[366726457,1750420248740,-430.0,0.00021245,2]
[366726458,1750420248750,-460.0,0.00021245,2]
[366726459,1750420248760,-268.29926914,0.00021245,2]
[366726460,1750420248770,-460.0,0.00021245,2]
[366726461,1750420248780,-467.67186364,0.00021245,2]
[366726462,1750420248790,-460.0,0.00021245,2]
[366726463,1750420248800,-452.96218221,0.00021245,2]
[366726464,1750420248810,-460.0,0.00021245,2]
[366726465,1750420248820,-801.3,0.00021245,2]
[366726466,1750420248830,-507.27650334,0.00021245,2]
[366726467,1750420248840,-460.0,0.00021245,2]
[366726468,1750420248850,-405.1464747,0.00021245,2]
[366726469,1750420248860,-460.0,0.00021245,2]
[366726470,1750420248870,-460.0,0.00021245,2]
[366726471,1750420248881,-460.0,0.00021245,2]
[366726472,1750420248890,-460.0,0.00021245,2]
[366726473,1750420248900,-460.0,0.00021245,2]
[366726474,1750420248909,-596.79,0.00021245,2]
[366726475,1750420248920,-432.24395494,0.00021245,2]
[366726476,1750420248931,-460.0,0.00021245,2]
[366726477,1750420248941,-460.0,0.00021245,2]
[366726478,1750420249130,-460.0,0.00021245,2]
[366726479,1750420249141,-460.0,0.00021245,2]
[366726480,1750420249152,-151.0,0.00021245,2]
[366726481,1750420249163,-151.0,0.00021245,2]
[366726482,1750420249174,-151.0,0.00021245,2]
[366726483,1750420249185,-151.0,0.00021245,2]
[366726484,1750420249195,-452.77194789,0.00021245,2]
[366726485,1750420249206,-460.0,0.00021245,2]
[366726486,1750420249220,-460.0,0.00021245,2]
[366726487,1750420249230,-460.0,0.00021245,2]
[366726488,1750420249240,-460.0,0.00021245,2]
[366726489,1750420249250,-460.0,0.00021245,2]
[366726490,1750420249261,-304.46758257,0.00021245,2]
[366726491,1750420249271,-460.0,0.00021245,2]
[366726492,1750420249280,-460.0,0.00021245,2]
[366726493,1750420249290,-460.0,0.00021245,2]
[366726494,1750420249300,-460.0,0.00021245,2]
[366726495,1750420249309,-460.0,0.00021245,2]
[366726496,1750420249319,-460.0,0.00021245,2]
[366726497,1750420249328,-500.0,0.00021245,2]
[366726498,1750420249337,-460.0,0.00021245,2]
[366726499,1750420249347,-607.14,0.00021245,2]
[366726500,1750420249357,-460.0,0.00021245,2]
[366726501,1750420249366,-460.0,0.00021245,2]
[366726502,1750420249376,-460.0,0.00021245,2]
[366726503,1750420249387,-460.0,0.00021245,2]
[366726504,1750420249397,-460.0,0.00021245,2]
[366726505,1750420249407,-151.0,0.00021245,2]
[366726506,1750420249417,-151.0,0.00021245,2]
[366726507,1750420249427,-157.28162691,0.00021245,2]
[366726508,1750420249437,-460.0,0.00021245,2]
[366726509,1750420249446,-460.0,0.00021245,2]
[366726510,1750420249456,-460.0,0.00021245,2]
[366726511,1750420249466,-460.0,0.00021245,2]
[366726512,1750420249476,-460.0,0.00021245,2]
[366726513,1750420249485,-460.0,0.00021245,2]
[366726514,1750420249495,-460.0,0.00021245,2]
[366726515,1750420249505,-460.0,0.00021245,2]
[366726516,1750420249515,-647.66,0.00021245,2]
[366726517,1750420249524,-460.0,0.00021245,2]
[366726518,1750420249534,-460.0,0.00021245,2]
[366726519,1750420249543,-387.52264096,0.00021245,2]
[366726520,1750420249553,-460.0,0.00021245,2]
[366726521,1750420249563,-460.0,0.00021245,2]
[366726522,1750420249572,-460.0,0.00021245,2]
[366726523,1750420249581,-151.0,0.00021245,2]
[366726524,1750420249591,-151.0,0.00021245,2]
[366726525,1750420249601,-684.64,0.00021245,2]
[366726526,1750420249610,-460.0,0.00021245,2]
[366726527,1750420249620,-460.0,0.00021245,2]
[366726528,1750420249630,-151.0,0.00021245,2]
[366726529,1750420249640,-151.0,0.00021245,2]
[366726530,1750420249650,-460.0,0.00021245,2]
[366726531,1750420249660,-151.0,0.00021245,2]
[366726532,1750420249669,-160.312223,0.00021245,2]
[366726533,1750420249680,-460.0,0.00021245,2]
[366726534,1750420249692,-460.0,0.00021245,2]
[366726535,1750420249703,-420.0,0.00021245,2]
[366726536,1750420249713,-460.0,0.00021245,2]
[366726537,1750420249723,-460.0,0.00021245,2]
[366726538,1750420249734,-460.0,0.00021245,2]
[366726539,1750420249744,-460.0,0.00021245,2]
[366726540,1750420249755,-433.47760734,0.00021245,2]
[366726541,1750420249765,-460.0,0.00021245,2]
[366726542,1750420249774,-151.0,0.00021245,2]
[366726543,1750420249784,-151.0,0.00021245,2]
[366726544,1750420249794,-500.0,0.00021273,2]
[366726545,1750420249803,-515.56249769,0.00021273,2]
[366726546,1750420249813,-427.0,0.00021368,2]
[366726547,1750420249823,-1253.28466563,0.000214,5]
[366726548,1750420249833,-1253.28466545,0.000214,5]